Cogmind - Beta 11 X8 *** ADVENTURER MODE // 2021.11.13 @ 14:19:41 Player: Rogirek Result: Core destroyed Performance ------------- Evolutions (5) 2500 Regions Visited (15) 3000 Robots Destroyed (101) 505 Value Destroyed (3166) 3166 Prototype IDs (10) 200 Alien Tech Used (0) 0 Bonus (467) 467 TOTAL SCORE: 9838 Bonus ------- High Alert Combat Kills 33 Follower Combat Kills 860 Friendly Fire -426 Cogmind --------- Core Integrity 0/1000 Matter 300/300 Energy 182/325 System Corruption 16% Temperature Critical (727) Movement Walking (190) Ox1 Location -5/Upper Caves Parts ------- > --- POWER (1) -------- Antimatter Reactor > --- PROPULSION (4) --- Carbon-fiber Leg Carbon-fiber Leg Carbon-fiber Leg > --- UTILITY (8) ------ Large Storage Unit Structural Scanner Machine Analyzer > --- WEAPON (4) ------- Dispersion Rifle Heavy Neutron Cannon > --- INVENTORY (15) --- Light Angular Momentum Engine Compact Matter Pod (150) Authchip [Processor] Authchip [Weapon] Heavy Phase Cannon Heavy Phase Cannon Heavy Phase Cannon Heavy Phase Cannon Heavy Phase Cannon Peak State ------------ > --- POWER ------------ Neutrino Core > --- PROPULSION ------- Heavy Treads Heavy Treads > --- UTILITY ---------- Thermal Converter Advanced Heat Sink Advanced Heat Sink Large Storage Unit Structural Scanner Machine Analyzer Propulsion Shielding Insulated Plating > --- WEAPON ----------- Heavy Flak Cannon Mass Driver Molecular Deconstructor > --- INVENTORY -------- Neutrino Core Antimatter Reactor Antimatter Reactor Heavy Treads Heavy Treads Insulated Plating Authchip [Processor] Authchip [Weapon] [Rating: 86] Favorites ----------- Power Antimatter Reactor Engine Improved Ion Engine Power Core Neutrino Core Reactor Antimatter Reactor Propulsion Heavy Treads Treads Heavy Treads Leg Carbon-fiber Leg Wheel Wheel Flight Unit Field Propulsion Array Utility Large Storage Unit Device Structural Scanner Storage Large Storage Unit Processor Machine Analyzer Protection Hardened Light Armor Plating Weapon Battle Cannon Energy Gun Dispersion Rifle Energy Cannon Heavy Neutron Cannon Ballistic Gun Assault Rifle Ballistic Cannon Battle Cannon Launcher Advanced EMP Blaster Special Weapon Molecular Deconstructor Build | -11 -10 -10 -10 -9 -8 -8 -8 -6 -6 -6 -6 -6 -5 -5 -5 ------- Run | Scr Mat Min Exi Min Mat Sto Rec Fac Was Fac Low Low Fac Upp Upp Slots Evolved 10 | . . . . . 4 . . 4 . . . . 2 . . Power . | . . . . . . . . . . . . . . . . Propulsion 2 | . . . . . 1 . . 1 . . . . . . . Utility 6 | . . . . . 3 . . 1 . . . . 2 . . Weapon 2 | . . . . . . . . 2 . . . . . . . Parts Attached 125 | 6 3 2 . . 8 30 4 6 15 . . 2 20 25 4 Power 9 | 1 . 1 . . 1 1 . . 1 . . . 1 2 1 Engine 4 | 1 . 1 . . 1 1 . . . . . . . . . Core 2 | . . . . . . . . . . . . . 1 1 . Reactor 3 | . . . . . . . . . 1 . . . . 1 1 Propulsion 31 | 2 . . . . 1 14 3 1 3 . . . 1 3 3 Treads 17 | 2 . . . . . 6 3 1 2 . . . 1 2 . Leg 12 | . . . . . 1 8 . . . . . . . . 3 Wheel 1 | . . . . . . . . . . . . . . 1 . Hover . | . . . . . . . . . . . . . . . . Flight 1 | . . . . . . . . . 1 . . . . . . Utility 52 | 1 3 1 . . 4 11 . 3 7 . . . 10 12 . Device 28 | . 2 1 . . 4 5 . 1 2 . . . 4 9 . Storage 6 | 1 1 . . . . 2 . 1 1 . . . . . . Processor 3 | . . . . . . 1 . 1 . . . . 1 . . Hackware . | . . . . . . . . . . . . . . . . Protection 15 | . . . . . . 3 . . 4 . . . 5 3 . Artifact . | . . . . . . . . . . . . . . . . Weapon 33 | 2 . . . . 2 4 1 2 4 . . 2 8 8 . Energy Gun 2 | . . . . . . . . . . . . . . 2 . Energy Cannon 5 | . . . . . . . . . . . . . . 5 . Ballistic Gun 12 | 2 . . . . 1 3 . 2 1 . . . 3 . . Ballistic Cannon 10 | . . . . . 1 . . . 3 . . 1 5 . . Launcher 2 | . . . . . . 1 1 . . . . . . . . Special Weapon 2 | . . . . . . . . . . . . 1 . 1 . Impact Weapon . | . . . . . . . . . . . . . . . . Slashing Weapon . | . . . . . . . . . . . . . . . . Piercing Weapon . | . . . . . . . . . . . . . . . . Special Melee Weapon . | . . . . . . . . . . . . . . . . Unidentified Prototypes 3 | . . 1 . . . 1 . . . . . 1 . . . Parts Lost 37 | . . 1 . . 1 . . . 7 . . . 3 17 8 Power 4 | . . 1 . . . . . . . . . . . 2 1 Propulsion 7 | . . . . . . . . . 2 . . . . 5 . Utility 19 | . . . . . 1 . . . 3 . . . 2 8 5 Weapon 7 | . . . . . . . . . 2 . . . 1 2 2 Highest Loss Streak 8 | . . 1 . . 1 . . . 7 . . . 2 7 8 Average Slot Usage (%) 85 | . 97 100 100 100 96 99 100 100 79 86 86 85 83 70 76 Engine 4 | . 14 14 14 14 9 9 9 6 . . . . . . . Reactor 2 | . . . . . . . . . 4 6 6 6 3 4 5 Treads 14 | . 28 28 28 28 18 24 27 26 13 13 13 13 10 2 . Device 17 | . 11 14 14 14 33 25 18 20 6 6 6 6 10 20 27 Storage 7 | . 14 14 14 14 9 9 9 6 4 6 6 6 5 5 5 Processor 3 | . . . . . . 3 9 6 . . . . 3 5 5 Protection 10 | . . . . . . 6 9 6 21 26 26 26 23 7 4 Energy Gun 2 | . . . . . . . . . . . . . . 6 10 Energy Cannon 3 | . . . . . . . . . . . . . . 9 10 Ballistic Gun 8 | . 28 28 28 28 10 11 11 20 7 6 6 5 5 . . Ballistic Cannon 6 | . . . . . 7 6 . . 16 20 20 18 12 2 . Naked Turns 46 | . . . . . . . . . 46 . . . . . . Heaviest Build 114 | 14 30 30 28 28 38 48 46 114 114 66 66 67 77 82 82 Greatest Support 140 | 40 40 40 40 40 40 66 66 80 140 140 140 140 140 140 45 Greatest Overweight (x) 27 | . . . . . . 2 . 1 2 . . . 1 27 27 Average Overweight (x) 1 | . . . . . . . . . . . . . . 9 15 Largest Inventory Capacity 25 | 8 15 15 15 15 15 25 15 25 25 15 15 15 15 15 15 Average Capacity 14 | 6 11 15 15 15 15 15 15 17 13 15 15 15 15 15 15 Most Carried 16 | 7 11 13 15 15 15 16 15 14 15 15 15 15 15 15 9 Average Carried 12 | 3 8 12 13 15 12 14 14 11 11 15 15 14 13 9 8 Final Capacity 25 | 8 15 15 15 15 15 15 15 25 15 15 15 15 15 15 15 Final Carried 15 | 7 11 13 15 15 13 14 15 13 15 15 15 15 15 9 9 Class Distribution -------------------- 26% | Mutant 25% | Scavenger-Tank 15% | Derelict-Skirmisher 13% | Scavenger-Mutant 10% | Derelict-Mutant 3% | Commander-Mutant 3% | Scavenger-Skirmisher Dominant Class ---------------- Mutant | -10/Materials Mutant | -10/Mines Mutant | -10/Exiles Mutant | -9/Mines Mutant | -8/Materials Mutant | -8/Storage Scavenger-Mutant | -8/Recycling Scavenger-Skirmisher | -6/Factory Scavenger-Tank | -6/Waste Scavenger-Tank | -6/Factory Scavenger-Tank | -6/Lower Caves Scavenger-Tank | -6/Lower Caves Scavenger-Tank | -5/Factory Derelict-Skirmisher | -5/Upper Caves Derelict-Skirmisher | -5/Upper Caves Resources | -11 -10 -10 -10 -9 -8 -8 -8 -6 -6 -6 -6 -6 -5 -5 -5 ----------- Run | Scr Mat Min Exi Min Mat Sto Rec Fac Was Fac Low Low Fac Upp Upp Matter Collected 4228 | 231 121 78 . . 80 1010 99 54 361 18 36 113 579 1353 95 Remotely 673 | . . . . . . . . . . . . . . 607 66 Salvage Created 3766 | 99 174 . . . 80 1365 447 54 261 21 35 33 377 657 163 Parts 196 | 2 14 . . . 5 90 30 5 6 1 2 . 21 16 4 Haulers Intercepted 5 | . . . . . . 5 . . . . . . . . . Recyclers Shooed 1 | . . . . . . . . 1 . . . . . . . Parts Field Recycled . | . . . . . . . . . . . . . . . . Retrieved Matter . | . . . . . . . . . . . . . . . . Parts Self-Destructed 48 | . . . . . . . . . . . 6 19 . 19 4 Prevented 3 | . . . . . . . . . . . . 3 . . . Kills | -11 -10 -10 -10 -9 -8 -8 -8 -6 -6 -6 -6 -6 -5 -5 -5 ------- Run | Scr Mat Min Exi Min Mat Sto Rec Fac Was Fac Low Low Fac Upp Upp Combat Hostiles Destroyed 79 | . 4 . . . 2 24 11 1 1 . 2 1 11 19 3 Guns 25 | . 4 . . . 1 10 1 1 1 . 1 . 2 1 3 Cannons 40 | . . . . . 1 14 . . . . 1 1 8 15 . AOE 10 | . . . . . . . 10 . . . . . . . . Classes Destroyed 18 | 1 2 . . . . 7 1 . 1 . 1 . 2 3 . Builder 4 | . . . . . . 2 2 . . . . . . . . Hauler 6 | . . . . . . 5 1 . . . . . . . . Recycler 8 | 1 . . . . . 3 4 . . . . . . . . Drone 11 | . . . . . . . 11 . . . . . . . . Watcher 3 | . 1 . . . . 1 . . . 1 . . . . . Swarmer 19 | . . . . . . 4 . . . . 1 . 5 9 . Grunt 23 | . 4 . . . 2 8 . . . . . . . 6 3 Sentry 11 | . . . . . . 8 . . . . . 1 1 1 . Specialist 2 | . . . . . . 2 . . . . . . . . . Hunter 4 | . . . . . . 1 1 1 . . . . . 1 . Programmer 5 | . . . . . . . . . . . 1 . 4 . . Heavy 1 | . . . . . . 1 . . . . . . . . . Behemoth 1 | . . . . . . . . . . . . . . 1 . Compactor 1 | . . . . . . . . . 1 . . . . . . Decomposer 4 | . . . . . . . . . . . . . . 4 . Assembled 1 | . . . . . . . . . . . . . 1 . . Surgeon 1 | . . . . . . . . . . . . . 1 . . Mutant 1 | . . . . . . . . . . . . . . 1 . Best Kill Streak 7 | 1 3 . . . 2 7 7 1 1 1 1 1 5 6 2 Combat Bots Only 6 | . 2 . . . 2 6 3 1 1 . 1 1 5 6 2 Max Kills in Single Turn 6 | 1 1 . . . 1 3 6 1 1 1 1 1 1 1 1 Gunslinging . | . . . . . . . . . . . . . . . . Exploded 3 | . . . . . . . 3 . . . . . . . . Melee . | . . . . . . . . . . . . . . . . Uniques/NPCs Destroyed . | . . . . . . . . . . . . . . . . Combat | -11 -10 -10 -10 -9 -8 -8 -8 -6 -6 -6 -6 -6 -5 -5 -5 -------- Run | Scr Mat Min Exi Min Mat Sto Rec Fac Was Fac Low Low Fac Upp Upp Damage Taken 8888 | . 78 345 . . 24 1201 79 91 389 . 10 264 1732 3698 977 Core 1498 | . . 62 . . . 154 11 . 260 . . . 143 600 268 Absorbed by Shields . | . . . . . . . . . . . . . . . . Core Remaining (%) 78 | 100 . . . 75 . . 70 . . . . 69 . . . Volleys Fired 235 | 3 10 7 . . 5 73 11 6 13 1 2 8 20 59 17 Largest 4 | 2 2 2 . . 2 2 2 3 4 4 4 4 4 4 4 Hottest 396 | 40 40 40 . . 64 72 51 74 110 142 142 142 174 396 396 Shots Fired 575 | 6 20 14 . . 10 146 13 18 44 4 8 32 65 170 25 Gun 276 | 6 20 14 . . 5 93 4 18 36 1 2 8 16 34 19 Cannon 271 | . . . . . 5 53 . . . 3 6 24 41 133 6 Launcher 17 | . . . . . . . 9 . 8 . . . . . . Special 11 | . . . . . . . . . . . . . 8 3 . Kinetic 453 | 6 20 14 . . 10 146 4 18 36 4 8 32 57 98 . Thermal 94 | . . . . . . . . . . . . . . 69 25 Explosive . | . . . . . . . . . . . . . . . . Electromagnetic 17 | . . . . . . . 9 . 8 . . . . . . Robot Hit Streak 39 | 5 12 15 . . 16 38 3 9 33 1 5 13 10 39 16 Robot Miss Streak 7 | 1 1 . . . 2 3 3 2 1 1 . 3 2 7 2 Penetration Max 1 | . . . . . . 1 . . . . . . . . . Secondary Targets 2 | . . . . . . 1 . . . . . . . . 1 Max Gunslinging Chain 1 | . . . . . . 1 . . . . . . . . 1 Shots Hit Robots 406 | 5 14 14 . . 9 121 3 13 38 1 4 15 36 116 17 Core Hits 255 | 2 9 3 . . 8 104 22 5 12 1 2 4 18 58 7 Critical Kills 2 | . . . . . . 1 . . . . . . . . 1 Critical Parts Destroyed 2 | . . . . . . . . . . . . . . . 2 Critical Strikes 8 | . . . . . . 1 . . 1 . . . 2 1 3 Destroy 5 | . . . . . . 1 . . 1 . . . . . 3 Blast 3 | . . . . . . . . . . . . . 2 1 . Melee Attacks . | . . . . . . . . . . . . . . . . Impact . | . . . . . . . . . . . . . . . . Slashing . | . . . . . . . . . . . . . . . . Piercing . | . . . . . . . . . . . . . . . . Sneak Attacks . | . . . . . . . . . . . . . . . . Combat Hostiles . | . . . . . . . . . . . . . . . . Follow-up Attacks . | . . . . . . . . . . . . . . . . Damage Inflicted 10179 | 52 186 168 . . 146 2560 1063 180 618 24 78 367 852 3388 497 Guns 3664 | 52 186 168 . . 67 1372 47 180 556 . 40 66 201 349 380 Cannons 5401 | . . . . . 79 1188 . . . 24 38 301 645 3009 117 Explosions 1066 | . . . . . . . 1004 . 62 . . . . . . Melee . | . . . . . . . . . . . . . . . . Ramming 48 | . . . . . . . 12 . . . . . 6 30 . Kinetic 6884 | 52 186 168 . . 146 2560 47 180 556 24 78 367 846 1674 . Thermal 2477 | . . . . . . . 296 . . . . . . 1684 497 Explosive . | . . . . . . . . . . . . . . . . Electromagnetic 770 | . . . . . . . 708 . 62 . . . . . . Impact . | . . . . . . . . . . . . . . . . Slashing . | . . . . . . . . . . . . . . . . Piercing . | . . . . . . . . . . . . . . . . Highest Corruption 16 | . . . . . . 1 1 1 1 1 1 1 14 16 16 Average Corruption 8 | . . . . . . 1 1 1 1 1 1 1 11 15 16 Corruption Purged . | . . . . . . . . . . . . . . . . Effects 277 | . . . . . . 4 5 1 3 2 2 4 23 200 33 Message Errors 67 | . . . . . . 1 3 1 2 . 1 3 5 46 5 Matter Fused 62 | . . . . . . . . . . . . . 4 52 6 Heat Flow Errors 39 | . . . . . . . . . . . . . 3 30 6 Energy Discharges 40 | . . . . . . 2 1 . 1 2 . 1 2 27 4 Parts Rejected 2 | . . . . . . . . . . . . . 1 1 . Data Loss (minor) 31 | . . . . . . 1 1 . . . 1 . 4 19 5 Data Loss (major) 15 | . . . . . . . . . . . . . 2 9 4 Misfires 6 | . . . . . . . . . . . . . . 6 . Alerts 9 | . . . . . . . . . . . . . 1 6 2 Weapon Failures 6 | . . . . . . . . . . . . . 1 4 1 Overload Shots . | . . . . . . . . . . . . . . . . Overflow Damage 249 | . . . . . . . 111 . . . . . 24 114 . Projectiles 137 | . . . . . . . . . . . . . 24 113 . Explosions 111 | . . . . . . . 111 . . . . . . . . Melee 1 | . . . . . . . . . . . . . . 1 . Knockbacks 63 | . . . . . 4 27 . . . . . 4 7 21 . Impact . | . . . . . . . . . . . . . . . . Kinetic 56 | . . . . . 3 23 . . . . . 4 7 19 . Secondary 7 | . . . . . 1 4 . . . . . . . 2 . Self-Inflicted Damage 60 | . . . . . . . 31 . 18 . . . . 11 . Shots 4 | . . . . . . . 2 . 2 . . . . . . Rammed 7 | . . . . . . . 1 . . . . . 2 4 . Targets Rammed 7 | . . . . . . . 1 . . . . . 2 4 . Kicked . | . . . . . . . . . . . . . . . . Crushed . | . . . . . . . . . . . . . . . . Highest Temperature 727 | . 2 . . . . 32 . . . 21 21 93 242 723 727 Average Temperature 171 | . 2 . . . . 15 . . . 14 14 28 63 169 303 Received Heat Transfer 1802 | . 57 . . . 18 459 . . . . . 30 21 705 512 Effects 28 | . . . . . . . . . . . . . . 19 9 Shutdowns 6 | . . . . . . . . . . . . . . 3 3 Energy Bleed 4 | . . . . . . . . . . . . . . 2 2 Interference 5 | . . . . . . . . . . . . . . 5 . Matter Decay 2 | . . . . . . . . . . . . . . 2 . Short Circuit 4 | . . . . . . . . . . . . . . 3 1 Damage (minor) 3 | . . . . . . . . . . . . . . 2 1 Damage (major) 1 | . . . . . . . . . . . . . . . 1 Damage (core) 3 | . . . . . . . . . . . . . . 2 1 Siege Activations . | . . . . . . . . . . . . . . . . Robots Corrupted . | . . . . . . . . . . . . . . . . Combat Hostiles . | . . . . . . . . . . . . . . . . Parts Fried 2 | . . . . . . . 2 . . . . . . . . Impact Corruptions 1 | . . . . . . . . . . . . . . 1 . Robots Melted 1 | . . . . . . . . . . . . . . 1 . Combat Hostiles 1 | . . . . . . . . . . . . . . 1 . Parts Melted 6 | . . . . . . . . . . 1 . . 1 3 1 Heat Transferred 2896 | . . . . . . . 600 . . . . . . 1703 593 Parts Sabotaged . | . . . . . . . . . . . . . . . . Parts Stolen . | . . . . . . . . . . . . . . . . Parts Stripped . | . . . . . . . . . . . . . . . . Power Chain Reactions 8 | . . . . . . . 5 . 3 . . . . . . Missiles Intercepted . | . . . . . . . . . . . . . . . . Alert | -11 -10 -10 -10 -9 -8 -8 -8 -6 -6 -6 -6 -6 -5 -5 -5 ------- Run | Scr Mat Min Exi Min Mat Sto Rec Fac Was Fac Low Low Fac Upp Upp Peak Influence 983 | 5 126 79 . . 59 225 601 983 287 131 . . 121 . . Initial 953 | . 2 . . . . 21 42 953 287 . . . . . . Average 123 | 1 46 13 . . 42 93 255 978 73 74 . . 56 . . Maximum Alert Level 3 | . . . . . . 1 2 3 1 . . . . . . Low Security (%) 80 | 100 100 100 . 100 100 89 37 . 84 100 . . 100 . . Level 1 13 | . . . . . . 10 47 . 15 . . . . . . Level 2 2 | . . . . . . . 15 . . . . . . . . Level 3 2 | . . . . . . . . 100 . . . . . . . Level 4 . | . . . . . . . . . . . . . . . . Level 5 . | . . . . . . . . . . . . . . . . High Security . | . . . . . . . . . . . . . . . . Max Security . | . . . . . . . . . . . . . . . . Squads Dispatched 10 | . 1 . . . 1 4 . . . 1 . . 3 . . Investigation 1 | . 1 . . . . . . . . . . . . . . Extermination 3 | . . . . . . . . . . 1 . . 2 . . Reinforcement 6 | . . . . . 1 4 . . . . . . 1 . . Assault . | . . . . . . . . . . . . . . . . Garrison . | . . . . . . . . . . . . . . . . Intercept . | . . . . . . . . . . . . . . . . Construction Impeded . | . . . . . . . . . . . . . . . . Haulers Reinforced . | . . . . . . . . . . . . . . . . Active Scanning Responses . | . . . . . . . . . . . . . . . . Cargo Convoy Interrupts . | . . . . . . . . . . . . . . . . Stealth | -11 -10 -10 -10 -9 -8 -8 -8 -6 -6 -6 -6 -6 -5 -5 -5 --------- Run | Scr Mat Min Exi Min Mat Sto Rec Fac Was Fac Low Low Fac Upp Upp Distress Signals 5 | . 1 . . . . 4 . . . . . . . . . Communications Jammed . | . . . . . . . . . . . . . . . . Distress Signals . | . . . . . . . . . . . . . . . . Times Spotted 162 | . 8 1 . . 3 36 39 1 4 3 4 10 19 26 8 Peak Tracking Total 11 | . 2 1 . . 2 6 5 1 3 1 3 5 5 11 5 Tactical Retreats 9 | . 1 . . . . 4 . . . . . . . 2 2 Traps | -11 -10 -10 -10 -9 -8 -8 -8 -6 -6 -6 -6 -6 -5 -5 -5 ------- Run | Scr Mat Min Exi Min Mat Sto Rec Fac Was Fac Low Low Fac Upp Upp Traps Triggered 6 | . 1 . . . . 2 . 2 . . . . 1 . . Indirectly . | . . . . . . . . . . . . . . . . Trap Hack Attempts . | . . . . . . . . . . . . . . . . Triggered . | . . . . . . . . . . . . . . . . Disarmed 3 | . . . . . . 3 . . . . . . . . . Reprogrammed 1 | . 1 . . . . . . . . . . . . . . Reused . | . . . . . . . . . . . . . . . . Traps Extracted . | . . . . . . . . . . . . . . . . Installed . | . . . . . . . . . . . . . . . . Triggered . | . . . . . . . . . . . . . . . . Exploded 1 | . . . . . . 1 . . . . . . . . . Machines | -11 -10 -10 -10 -9 -8 -8 -8 -6 -6 -6 -6 -6 -5 -5 -5 ---------- Run | Scr Mat Min Exi Min Mat Sto Rec Fac Was Fac Low Low Fac Upp Upp Machines Disabled 11 | . . . . . . 2 3 . . . . 3 1 2 . Max in Single Turn 2 | . . . . . . 1 1 . . . . 2 1 1 . Machines Sabotaged . | . . . . . . . . . . . . . . . . Garrisons Compromised . | . . . . . . . . . . . . . . . . Overloaded Fab Kills . | . . . . . . . . . . . . . . . . Hacking | -11 -10 -10 -10 -9 -8 -8 -8 -6 -6 -6 -6 -6 -5 -5 -5 --------- Run | Scr Mat Min Exi Min Mat Sto Rec Fac Was Fac Low Low Fac Upp Upp Machines Accessed 35 | . 5 . 4 . 1 12 8 1 . . . 2 . 2 . Terminals 24 | . 5 . . . 1 10 6 1 . . . . . 1 . Fabricators . | . . . . . . . . . . . . . . . . Repair Stations 1 | . . . . . . 1 . . . . . . . . . Recycling Units 3 | . . . . . . 1 2 . . . . . . . . Scanalyzers . | . . . . . . . . . . . . . . . . Garrison Access . | . . . . . . . . . . . . . . . . Total Hacks 93 | . 21 . 4 . 5 25 23 2 . . . 9 . 4 . Successful 63 | . 12 . 4 . 2 18 14 . . . . 9 . 4 . Failed 30 | . 9 . . . 3 7 9 2 . . . . . . . Catastrophic 6 | . 2 . . . 2 . 2 . . . . . . . . Database Lockouts . | . . . . . . . . . . . . . . . . Manual 23 | . 10 . 1 . 4 5 . 2 . . . 1 . . . Terminals 72 | . 21 . . . 5 20 21 2 . . . . . 3 . Fabricators . | . . . . . . . . . . . . . . . . Repair Stations 4 | . . . . . . 4 . . . . . . . . . Recycling Units 3 | . . . . . . 1 2 . . . . . . . . Scanalyzers . | . . . . . . . . . . . . . . . . Garrison Access . | . . . . . . . . . . . . . . . . Terminal Hacks 55 | . 12 . 4 . 1 13 12 . . . . 9 . 4 . Record 23 | . 3 . 4 . 1 1 3 . . . . 8 . 3 . Part Schematic 2 | . . . . . . . 2 . . . . . . . . Robot Schematic 1 | . . . . . . . 1 . . . . . . . . Robot Analysis 2 | . . . . . . 1 1 . . . . . . . . Prototype ID Bank 4 | . 2 . . . . . 2 . . . . . . . . Open Door 6 | . . . . . . 4 . . . . . 1 . 1 . Branch Access Points 2 | . 1 . . . . 1 . . . . . . . . . Emergency Access Points 1 | . . . . . . 1 . . . . . . . . . Terminal Index 2 | . . . . . . 1 1 . . . . . . . . Alert Level 3 | . 1 . . . . 1 1 . . . . . . . . Unreport Threat 3 | . 1 . . . . 1 1 . . . . . . . . Disarm Traps 1 | . . . . . . 1 . . . . . . . . . Reprogram Traps 1 | . 1 . . . . . . . . . . . . . . Maintenance Status 1 | . 1 . . . . . . . . . . . . . . Hauler Manifests 1 | . 1 . . . . . . . . . . . . . . Registered Components 1 | . . . . . . 1 . . . . . . . . . Zone Layout 1 | . 1 . . . . . . . . . . . . . . Fabricator Hacks . | . . . . . . . . . . . . . . . . Repair Station Hacks 4 | . . . . . . 4 . . . . . . . . . Scan Component 2 | . . . . . . 2 . . . . . . . . . Repair 2 | . . . . . . 2 . . . . . . . . . Recycling Unit Hacks 3 | . . . . . . 1 2 . . . . . . . . Report Inventory 3 | . . . . . . 1 2 . . . . . . . . Scanalyzer . | . . . . . . . . . . . . . . . . Garrison Access Hacks . | . . . . . . . . . . . . . . . . Unauthorized Hacks 1 | . . . . . 1 . . . . . . . . . . Terminals 1 | . . . . . 1 . . . . . . . . . . Botnet 1 | . . . . . 1 . . . . . . . . . . Fabricators . | . . . . . . . . . . . . . . . . Repair Stations . | . . . . . . . . . . . . . . . . Recycling Units . | . . . . . . . . . . . . . . . . Scanalyzers . | . . . . . . . . . . . . . . . . Garrison Access . | . . . . . . . . . . . . . . . . Data Cores Recovered . | . . . . . . . . . . . . . . . . Used . | . . . . . . . . . . . . . . . . Hacking Detections 20 | . 5 . . . 1 7 5 1 . . . . . 1 . Full Trace Events 4 | . 1 . . . . 1 1 . . . . . . 1 . Feedback Events . | . . . . . . . . . . . . . . . . Feedback Blocked . | . . . . . . . . . . . . . . . . Robot Schematics Acquired 1 | . . . . . . . 1 . . . . . . . . Robots Built . | . . . . . . . . . . . . . . . . Authchips . | . . . . . . . . . . . . . . . . Time . | . . . . . . . . . . . . . . . . Total Robot Build Rating . | . . . . . . . . . . . . . . . . Part Schematics Acquired 2 | . . . . . . . 2 . . . . . . . . Parts Built . | . . . . . . . . . . . . . . . . Authchips . | . . . . . . . . . . . . . . . . Time . | . . . . . . . . . . . . . . . . Total Part Build Rating . | . . . . . . . . . . . . . . . . Parts Repaired 2 | . . . . . . 2 . . . . . . . . . Time 52 | . . . . . . 52 . . . . . . . . . Parts Recycled . | . . . . . . . . . . . . . . . . Recycled Matter . | . . . . . . . . . . . . . . . . Retrieved Matter . | . . . . . . . . . . . . . . . . Retrieved Components . | . . . . . . . . . . . . . . . . Parts Scanalyzed . | . . . . . . . . . . . . . . . . Part Schematics Acquired . | . . . . . . . . . . . . . . . . Parts Damaged . | . . . . . . . . . . . . . . . . Bothacking | -11 -10 -10 -10 -9 -8 -8 -8 -6 -6 -6 -6 -6 -5 -5 -5 ------------ Run | Scr Mat Min Exi Min Mat Sto Rec Fac Was Fac Low Low Fac Upp Upp Used RIF Installer . | . . . . . . . . . . . . . . . . Robots Hacked . | . . . . . . . . . . . . . . . . Non-combat . | . . . . . . . . . . . . . . . . Combat . | . . . . . . . . . . . . . . . . Robot Hacks Applied . | . . . . . . . . . . . . . . . . Relay Couplers Released . | . . . . . . . . . . . . . . . . Fabnet Peak Effective % . | . . . . . . . . . . . . . . . . Robots Rewired 14 | . . . . . . . 9 . . . . 2 . 3 . Allies Hacked . | . . . . . . . . . . . . . . . . Hacks Repelled . | . . . . . . . . . . . . . . . . Allies | -11 -10 -10 -10 -9 -8 -8 -8 -6 -6 -6 -6 -6 -5 -5 -5 -------- Run | Scr Mat Min Exi Min Mat Sto Rec Fac Was Fac Low Low Fac Upp Upp Total Allies 40 | . . 3 . . . 2 9 . 20 . . 2 . 4 . Largest Group 19 | . . 3 . . . 2 9 . 19 15 15 14 14 4 3 Highest-Rated Group 696 | . . 40 . . . 115 125 . 696 571 571 551 551 210 75 Highest-Rated Ally 135 | . . 16 . . . 100 100 . 50 50 50 50 50 135 25 Total Orders 5 | . . . . . . 1 4 . . . . . . . . ROAM 1 | . . . . . . . 1 . . . . . . . . FOLLOW 3 | . . . . . . . 3 . . . . . . . . EXPLORE 1 | . . . . . . 1 . . . . . . . . . Ally Attacks 532 | . . 11 . . . 3 290 . 81 17 21 44 55 . 10 Total Damage 9511 | . . 101 . . . 165 2567 . 2503 321 485 1547 1566 . 256 Kills 115 | . . 4 . . . 2 59 . 6 3 2 18 20 . 1 Allies Corrupted . | . . . . . . . . . . . . . . . . Allies Melted . | . . . . . . . . . . . . . . . . Intel | -11 -10 -10 -10 -9 -8 -8 -8 -6 -6 -6 -6 -6 -5 -5 -5 ------- Run | Scr Mat Min Exi Min Mat Sto Rec Fac Was Fac Low Low Fac Upp Upp Robot Analysis Total 2 | . . . . . . 1 1 . . . . . . . . Derelict Logs Recovered 7 | . . 2 . 1 . . . . . . 1 2 . 1 . Drone Launches 4 | . . . . . . 4 . . . . . . . . . Drone Recoveries 2 | . . . . . . 2 . . . . . . . . . Exploration | -11 -10 -10 -10 -9 -8 -8 -8 -6 -6 -6 -6 -6 -5 -5 -5 ------------- Run | Scr Mat Min Exi Min Mat Sto Rec Fac Was Fac Low Low Fac Upp Upp Turns Passed 15899 | 87 452 947 548 162 163 2296 1427 217 1175 311 549 1224 735 4758 848 Spaces Moved 6163 | 41 236 541 342 100 81 839 744 101 687 180 322 698 323 838 90 Core 390 | 2 . . . . . . . . 74 . . . . 266 48 Treads 5431 | 39 236 541 342 100 81 787 744 101 536 180 322 698 323 401 . Legs 94 | . . . . . . 52 . . . . . . . . 42 Wheels 171 | . . . . . . . . . . . . . . 171 . Hover . | . . . . . . . . . . . . . . . . Flight 77 | . . . . . . . . . 77 . . . . . . Fastest Speed 40 | 50 160 160 160 160 160 145 145 170 40 160 160 160 160 160 190 Average Speed 216 | 154 160 160 160 160 160 151 160 189 140 160 160 160 160 520 867 Slowest Speed 1400 | 160 160 160 160 160 160 305 170 250 250 160 160 160 240 1400 1400 Overloaded Moves . | . . . . . . . . . . . . . . . . Propulsion Burnouts . | . . . . . . . . . . . . . . . . Robots Hopped . | . . . . . . . . . . . . . . . . Cave-ins Triggered . | . . . . . . . . . . . . . . . . Exploration Rate (%) 49 | 3 51 99 63 33 9 96 99 3 95 9 49 83 9 79 19 Regions Visited 15 Branch Regions 9 Pre-discovered Areas 4 | . . 1 . . . . . . . . . 3 . . . Known Exits Taken 4 | . 1 . . . 1 1 . . . . . . . 1 . Unknown Exits Taken 9 | 1 . 1 1 1 . . 1 . . 1 1 1 1 . . Scrap Searched 10 | . . 1 . 1 . . . . . . 3 2 . 2 1 Spaces Dug . | . . . . . . . . . . . . . . . . Terrain Destroyed 47 | . . . . . . . 8 . . 1 . . 8 27 3 Melee . | . . . . . . . . . . . . . . . . Projectile 39 | . . . . . . . . . . 1 . . 8 27 3 AOE 8 | . . . . . . . 8 . . . . . . . . Terrain Rammed . | . . . . . . . . . . . . . . . . Walls Destroyed . | . . . . . . . . . . . . . . . . Machines Disabled . | . . . . . . . . . . . . . . . . Actions | -11 -10 -10 -10 -9 -8 -8 -8 -6 -6 -6 -6 -6 -5 -5 -5 --------- Run | Scr Mat Min Exi Min Mat Sto Rec Fac Was Fac Low Low Fac Upp Upp Total 8253 | 56 292 608 343 103 104 1744 965 115 859 201 351 788 489 1103 132 Wait 1461 | . 37 56 . . 7 710 133 . 130 19 28 68 102 151 20 Move 6149 | 40 235 540 341 99 80 838 743 101 686 179 321 697 322 837 90 Hop . | . . . . . . . . . . . . . . . . Pick Up 105 | 7 5 3 2 2 3 39 8 2 11 1 . 3 10 8 1 Fast Attach 47 | 6 1 . . . . 5 . . 15 . . . 3 14 3 Attach 41 | . . 1 . . 5 4 3 4 . . . 1 12 10 1 Detach 5 | . . . . . . 3 . . . . . . 2 . . Swap 37 | . 2 1 . . 3 21 1 2 . . . 1 5 1 . Drop 90 | . 2 . . 2 1 51 7 . 4 1 . 4 9 9 . Fire 235 | 3 10 7 . . 5 73 11 6 13 1 2 8 20 59 17 Melee . | . . . . . . . . . . . . . . . . Ram 3 | . . . . . . . . . . . . . . 3 . Kick . | . . . . . . . . . . . . . . . . Crush 4 | . . . . . . . 1 . . . . . 2 1 . Escape Stasis . | . . . . . . . . . . . . . . . . Rewire 76 | . . . . . . . 58 . . . . 6 2 10 . Trap . | . . . . . . . . . . . . . . . . Miscellaneous . | . . . . . . . . . . . . . . . . Route ------- -11/Scrapyard -10/Materials (discovered 3 exits: [*Mat] / *Min x2) -10/Mines (discovered 3 exits: [*Mat x2] / *Exi) -10/Exiles -9/Mines -8/Materials (discovered 2 exits: *Sto x2) -8/Storage (discovered 2 exits: [*Fac] / *Rec) -8/Recycling -6/Factory -6/Waste -6/Factory -6/Lower Caves -6/Lower Caves (discovered 2 exits: [*Fac] / [*Zio]) -5/Factory (discovered 2 exits: Fac / *Upp) -5/Upper Caves (discovered 2 exits: *Upp / *Fac) -5/Upper Caves History --------- Turn | Location | Event 6 | -11/Scrapyard | Discovered new exit (range 15) 88 | -11/Scrapyard | Entered Materials 292 | -10/Materials | Identified exit to Mines 310 | -10/Materials | Discovered new exit (range 11) 314 | -10/Materials | Build established: Mutant 540 | -10/Materials | Entered Mines 553 | -10/Mines | Assisted by bots powering up and referring to "LRC-V3" 668 | -10/Mines | Learned Materials terminal intel 688 | -10/Mines | Discovered new exit (range 8) 728 | -10/Mines | Discovered new exit (range 8) 1191 | -10/Mines | Found a damaged Exp. Sensor Array with a note attached 1195 | -10/Mines | Found Prototype Device 1196 | -10/Mines | Identified Exp. Sensor Array 1373 | -10/Mines | Learned location of Zion (-6) 1477 | -10/Mines | Deemed a non-threat by the Exiles lab entrance 1479 | -10/Mines | Discovered new exit (range 5) 1487 | -10/Mines | Entered Exiles 1487 | -10/Exiles | Found Exiles lab abandoned 1513 | -10/Exiles | Discovered new exit (range 15) 2035 | -10/Exiles | Entered Mines 2189 | -9/Mines | Discovered new exit (range 5) 2197 | -9/Mines | Entered Materials 2197 | -8/Materials | Evolved 4 slots: Propulsion x1, Utility x3 2198 | -8/Materials | Identified exit to Storage 2199 | -8/Materials | Loaded intel: 12 terminal locations 2201 | -8/Materials | Discovered exit to Storage (range 8) 2360 | -8/Materials | Entered Storage 2474 | -8/Storage | Repaired Lgt. Treads 2502 | -8/Storage | Repaired Structural Scanner 3761 | -8/Storage | Discovered new exit (range 8) 3767 | -8/Storage | Identified exit to Recycling 4353 | -8/Storage | Build established: Scavenger-Mutant 4511 | -8/Storage | Met 01-MTF 4656 | -8/Storage | Entered Recycling 4656 | -8/Recycling | Accompanied by 1 ally (01-MTF) 4661 | -8/Recycling | 01-MTF left 4678 | -8/Recycling | Spotter reported a threat 4683 | -8/Recycling | Spotter reported a threat 4701 | -8/Recycling | Spotter reported a threat 4701 | -8/Recycling | Spotter reported a threat 4712 | -8/Recycling | Spotter reported a threat 4713 | -8/Recycling | Spotter reported a threat 4731 | -8/Recycling | Spotter reported a threat 4740 | -8/Recycling | Spotter reported a threat 4744 | -8/Recycling | Spotter reported a threat 4745 | -8/Recycling | Spotter reported a threat 4754 | -8/Recycling | Spotter reported a threat 4754 | -8/Recycling | Spotter reported a threat 4766 | -8/Recycling | Spotter reported a threat 4798 | -8/Recycling | Spotter reported a threat 4811 | -8/Recycling | Spotter reported a threat 4812 | -8/Recycling | Spotter reported a threat 4812 | -8/Recycling | Spotter reported a threat 4861 | -8/Recycling | Spotter reported a threat 4861 | -8/Recycling | Spotter reported a threat 4861 | -8/Recycling | Spotter reported a threat 4867 | -8/Recycling | Spotter reported a threat 4905 | -8/Recycling | Spotter reported a threat 4905 | -8/Recycling | Spotter reported a threat 4905 | -8/Recycling | Spotter reported a threat 4905 | -8/Recycling | Spotter reported a threat 4948 | -8/Recycling | Spotter reported a threat 4948 | -8/Recycling | Spotter reported a threat 4948 | -8/Recycling | Spotter reported a threat 4958 | -8/Recycling | Spotter reported a threat 5010 | -8/Recycling | Spotter reported a threat 5010 | -8/Recycling | Spotter reported a threat 5010 | -8/Recycling | Spotter reported a threat 5011 | -8/Recycling | Spotter reported a threat 5052 | -8/Recycling | Spotter reported a threat 5052 | -8/Recycling | Spotter reported a threat 5052 | -8/Recycling | Spotter reported a threat 5053 | -8/Recycling | Spotter reported a threat 5055 | -8/Recycling | Build established: Commander-Mutant 5105 | -8/Recycling | Spotter reported a threat 5105 | -8/Recycling | Spotter reported a threat 5105 | -8/Recycling | Spotter reported a threat 5105 | -8/Recycling | Spotter reported a threat 5146 | -8/Recycling | Discovered new exit (range 16) 5158 | -8/Recycling | Spotter reported a threat 5205 | -8/Recycling | Spotter reported a threat 5205 | -8/Recycling | Spotter reported a threat 5205 | -8/Recycling | Spotter reported a threat 5258 | -8/Recycling | Spotter reported a threat 5260 | -8/Recycling | Spotter reported a threat 5260 | -8/Recycling | Spotter reported a threat 5261 | -8/Recycling | Spotter reported a threat 5305 | -8/Recycling | Spotter reported a threat 5305 | -8/Recycling | Spotter reported a threat 5305 | -8/Recycling | Spotter reported a threat 5305 | -8/Recycling | Spotter reported a threat 5356 | -8/Recycling | Spotter reported a threat 5356 | -8/Recycling | Spotter reported a threat 5356 | -8/Recycling | Spotter reported a threat 5409 | -8/Recycling | Spotter reported a threat 5410 | -8/Recycling | Spotter reported a threat 5425 | -8/Recycling | Spotter reported a threat 5430 | -8/Recycling | Spotter reported a threat 5475 | -8/Recycling | Spotter reported a threat 5483 | -8/Recycling | Spotter reported a threat 5536 | -8/Recycling | Spotter reported a threat 5572 | -8/Recycling | Spotter reported a threat 5588 | -8/Recycling | Spotter reported a threat 5589 | -8/Recycling | Spotter reported a threat 5625 | -8/Recycling | Spotter reported a threat 5631 | -8/Recycling | Spotter reported a threat 5641 | -8/Recycling | Spotter reported a threat 5642 | -8/Recycling | Spotter reported a threat 5662 | -8/Recycling | Build established: Scavenger-Mutant 5678 | -8/Recycling | Spotter reported a threat 5683 | -8/Recycling | Spotter reported a threat 5704 | -8/Recycling | Spotter reported a threat 5736 | -8/Recycling | Spotter reported a threat 5747 | -8/Recycling | Spotter reported a threat 5747 | -8/Recycling | Spotter reported a threat 5750 | -8/Recycling | Spotter reported a threat 5799 | -8/Recycling | Spotter reported a threat 5799 | -8/Recycling | Spotter reported a threat 5803 | -8/Recycling | Spotter reported a threat 5843 | -8/Recycling | Spotter reported a threat 5852 | -8/Recycling | Spotter reported a threat 5856 | -8/Recycling | Spotter reported a threat 5874 | -8/Recycling | Spotter reported a threat 5896 | -8/Recycling | Spotter reported a threat 5905 | -8/Recycling | Spotter reported a threat 5909 | -8/Recycling | Spotter reported a threat 5927 | -8/Recycling | Spotter reported a threat 5949 | -8/Recycling | Spotter reported a threat 5962 | -8/Recycling | Spotter reported a threat 5973 | -8/Recycling | Spotter reported a threat 5973 | -8/Recycling | Spotter reported a threat 6002 | -8/Recycling | Spotter reported a threat 6019 | -8/Recycling | Spotter reported a threat 6026 | -8/Recycling | Spotter reported a threat 6026 | -8/Recycling | Spotter reported a threat 6072 | -8/Recycling | Spotter reported a threat 6083 | -8/Recycling | Entered Factory 6083 | -6/Factory | Evolved 4 slots: Propulsion x1, Utility x1, Weapon x2 6300 | -6/Factory | Sucked down chute 6300 | -6/Factory | Entered Waste 6301 | -6/Waste | Met a frightened Derelict 6388 | -6/Waste | Spotted C-40 Crusher 6395 | -6/Waste | Build established: Scavenger-Skirmisher 6401 | -6/Waste | Destroyed C-40 Crusher 6449 | -6/Waste | Crushed by Compactor (1 part destroyed, 2 dropped) 6452 | -6/Waste | Crushed by Compactor (1 part destroyed, 2 dropped) 6455 | -6/Waste | Crushed by Compactor (1 part destroyed, 2 dropped) 6457 | -6/Waste | Crushed by Compactor (1 part destroyed, 2 dropped) 6466 | -6/Waste | Spotted C-40 Crusher 6466 | -6/Waste | Spotted C-40 Crusher 6488 | -6/Waste | Lost 7 parts (2n3u2w) 6489 | -6/Waste | Spotted C-40 Crusher 6500 | -6/Waste | Warlord forces began an assault 6972 | -6/Waste | Build established: Scavenger-Tank 7046 | -6/Waste | Discovered new exit (range 15) 7475 | -6/Waste | Entered Factory 7475 | -6/Factory | Accompanied by 15 allies 7761 | -6/Factory | Discovered new exit (range 7) 7786 | -6/Factory | Entered Lower Caves 7786 | -6/Lower Caves | Accompanied by 15 allies 8219 | -6/Lower Caves | Learned Factory emergency access door positions 8220 | -6/Lower Caves | Encountered a Warlord checkpoint 8299 | -6/Lower Caves | Discovered new exit (range 16) 8335 | -6/Lower Caves | Entered another Lower Caves area 8335 | -6/Lower Caves | Accompanied by 14 allies 8798 | -6/Lower Caves | Learned location of Extension (-5) 8815 | -6/Lower Caves | Discovered new exit (range 10) 8848 | -6/Lower Caves | Encountered a Warlord checkpoint 9027 | -6/Lower Caves | Learned location of 1 exit from Factory 9056 | -6/Lower Caves | Attracted the attention of an 0b10 checkpoint 9355 | -6/Lower Caves | Acquired the password to a Derelict Tinkerer's latest research 9372 | -6/Lower Caves | Found Prototype Special Weapon 9374 | -6/Lower Caves | Identified Molecular Deconstructor 9490 | -6/Lower Caves | Learned location of 1 exit from Research 9490 | -6/Lower Caves | Learned Research terminal intel 9490 | -6/Lower Caves | Learned Extension terminal intel 9519 | -6/Lower Caves | Discovered new exit (range 9) 9559 | -6/Lower Caves | Entered Factory 9559 | -5/Factory | Accompanied by 14 allies 9559 | -5/Factory | Evolved 2 slots: Utility x2 9560 | -5/Factory | Identified exit to Factory 9590 | -5/Factory | Assembled infested ambush trap array 9884 | -5/Factory | System corruption reached 10% 10182 | -5/Factory | Discovered new exit (range 11) 10294 | -5/Factory | Entered Upper Caves 10295 | -5/Upper Caves | Encountered a Warlord checkpoint 10460 | -5/Upper Caves | Spotted B-75 Beast 10875 | -5/Upper Caves | Destroyed B-75 Beast 11036 | -5/Upper Caves | Lost 6 parts (1n3u2w) 11091 | -5/Upper Caves | Attracted the attention of an 0b10 base 11141 | -5/Upper Caves | Core integrity fell below 50% 11166 | -5/Upper Caves | Lost 7 parts (2p2n3u) 11455 | -5/Upper Caves | Build established: Mutant 11755 | -5/Upper Caves | Identified exit to Upper Caves 11930 | -5/Upper Caves | Build established: Derelict-Mutant 12403 | -5/Upper Caves | Build established: Derelict-Skirmisher 12878 | -5/Upper Caves | Build established: Derelict-Mutant 13790 | -5/Upper Caves | Attacked by a delusional Derelict stockpiling Unaware 13895 | -5/Upper Caves | 99-TNT showed up to help 13897 | -5/Upper Caves | 99-TNT revealed a hidden path 14094 | -5/Upper Caves | Build established: Derelict-Skirmisher 15052 | -5/Upper Caves | Entered another Upper Caves area 15052 | -5/Upper Caves | Accompanied by 3 allies 15585 | -5/Upper Caves | Attracted the attention of an 0b10 checkpoint 15868 | -5/Upper Caves | Core integrity fell below 20% 15901 | -5/Upper Caves | Core destroyed Last Messages --------------- 15864_ Critical hit (Burn: +50). 15866_ G-50 Soldier destroyed. 15869_ System corrupted: Substantial component data lost. 15870_ Critical hit (Burn: +37). 15871_ Acquired Lgt. Angular Momentum Engine. 15872_ Acquired 22 matter. 15873_ Critical hit (Burn: +50). 15876_ Dispersion Rifle destroyed. 15879_ Critical hit (Burn: +37). 15880_ System corrupted: Dispersion Rifle failed to cycle. 15884_ System corrupted: Heat flow error (+144). 15888_ Critical hit (Burn: +37). 15891_ Transmission Jammer destroyed. 15891_ Critical hit (Burn: +37). 15895_ Power failure, Antimatter Reactor shutdown. 15897_ Machine Analyzer permanently disabled. 15897_ Overheating: Short circuit. 15897_ Hvy. Neutron Cannon destroyed. 15899_ Overheating: Energy bleed (-22). 15901_ Overheating: Core damaged (-180). Map ----- +----------------------------------------------------+ | ?????????????????????????????????????????????????? | | ?????????????????????????????????????????????????? | | ?????????????????????????????????????????????????? | | ?????????????????????????????????????????????????? | | ?????????????????????????????????????????????????? | | ?????????????????????????????????????????????????? | | ?????????????????????????????????????????????????? | | ?????????????????????????????????????????????????? | | ?????????????????????????????????????????????????? | | ?????????????????????????????????????????????????? | | ?????????????????????????????????????????????????? | | ?????????????????????????????????????????????????? | | ?????????????????????????????????????????????????? | | ?????????????????????????????????????????????????? | | ?????????????????????????????????????????????????? | | ?????????????????????????????????????????????????? | | ?????????????????????????????????????????????????? | | ?????????????????????????????????????????????????? | | ??????????????????????????####???????????????????? | | ???????????????????#####?#####???????????????????? | | ???????????????????######## ##???????????????????? | | ???????????????????## ####;###???????????????????? | | ???????????####????## % ##????????????????????? | | ??????????########### ####??????????????????? | | ?????????#### ####### %%% ####??????????????????? | | ??# ?? #### #### ##@ ;###?????????????????? | | ??## ### #### ##?????????????????? | | ??## ##### g ???????????????? | | ??### ####??? ????????????? | | #### ##### ####??? ?????????? | | #### ??###### ###???? ### ###?????????? | | ??#### ##???? ### ###?????????? | | #### ###????? ###??????????????? | | ## ########????? ###??????????????? | | ##########???? #???????????????? | | ? ## ###?######### ???????????????? | | ??#### ###### ####### ?????????????? | | ???###### ## ##### #### ?????????????? | | ????######### # #### ] #### ?????????????? | | ???????###### ##### "" ######????????????? | | ####???###### ##### """" # ###????????????? | | ########## #### """ ##????????????? | | # ###### ###### " ######### ????? | | # ###### " ######### ????? | | # ###### """" ##?? | | ###### " ##?? | | % "## ##########?? | | ####### ##########?? | | ####### ## ###??????? | | %! # ##### ## ##??????? | +----------------------------------------------------+ Best States ------------- Heat Dissipation 97 Energy Generation 21 Energy Capacity 325 Matter Stores 300 Matter Capacity 300 Sight Range 16 Robot Scan Range 20 Terrain Scan Range 14 Terrain Scan Density 10 Jamming Range 8 EM Shielding 2 Armor Coverage 600 Resistance: KI 20 Resistance: TH 20 Resistance: EX 20 Resistance: EM 35 Resistance: I 20 Resistance: S 20 Resistance: P 20 Propulsion Shielding 66 Thermal Conversion 30 Evasion (%) 62 Targeting Accuracy 8 Recoil Reduction 4 Offensive Hacking 10 Authchip Count 5 Item Schematics ----------------- Arc Projector | -8/Recycling | Hacked Weapon Cycler | -8/Recycling | Hacked Robot Schematics ------------------ H-55 Commando | -8/Recycling | Hacked Fabricated ------------ Nothing Alien Tech Used ----------------- None Achievements -------------- Generalissimo Challenges ------------ None Game ------ Seed MappingSystemStorm Manual? 0 Play Time 01:40:02 Cumulative 52.8 hours Start 2021.11.13 @ 12:30:39 End 2021.11.13 @ 14:19:41 Sessions 1 Manual Loads 0 Difficulty Adventurer Special Mode None Game No. 31 Rogue 7 Adventurer 24 Explorer 0 Win Type - Total 1 Types 1/0/0/0/0/0/0/0/0 Lore% 31 Gallery% 43 Achievement% 37 Wizard Run 0 Options --------- ASCII 0 Keyboard 0 Movement Mouse Keybinds 0 Fullscreen 1 Font 24/Smallcaps Map View 76x50 Tactical HUD 1 Map Filters NONE Filters NONE Steam 1 RUN: 17f15005-36d8-43b0-ae04-682a43b9ab0d